[Event "NK 2022"]
[Site "Groningen, Netherlands"]
[Date "2022.12.22"]
[Round "2.7"]
[White "Burg, Twan"]
[Black "Pruijssers, Roeland"]
[Result "0-1"]
[TimeControl "40/90; 30 minutes + increment 30 seconds from start"]
[WhiteTitle "GM"]
[BlackTitle "GM"]
[WhiteFideId "1010697"]
[BlackFideId "1013068"]
[WhiteElo "2522"]
[BlackElo "2538"]

1. e4 {[%clk 01:30:59]} c5 {[%clk 01:30:04]} {[%emt 00:00:56]} 2. Nf3 {[%clk
01:31:15]} {[%emt 00:00:14]} e6 {[%clk 01:30:09]} {[%emt 00:00:26]} 3. d4
{[%clk 01:31:23]} {[%emt 00:00:22]} cxd4 {[%clk 01:30:31]} {[%emt 00:00:08]} 4.
Nxd4 {[%clk 01:31:48]} {[%emt 00:00:04]} Nc6 {[%clk 01:30:50]} {[%emt
00:00:11]} 5. Nc3 {[%clk 01:31:58]} {[%emt 00:00:20]} Nf6 {[%clk 01:31:08]}
{[%emt 00:00:12]} 6. Ndb5 {[%clk 01:31:00]} {[%emt 00:01:28]} d6 {[%clk
01:31:21]} {[%emt 00:00:17]} 7. Bf4 {[%clk 01:31:00]} {[%emt 00:00:30]} e5
{[%clk 01:31:43]} {[%emt 00:00:08]} 8. Bg5 {[%clk 01:31:18]} {[%emt 00:00:13]}
a6 {[%clk 01:32:03]} {[%emt 00:00:10]} 9. Na3 {[%clk 01:31:36]} {[%emt
00:00:12]} b5 {[%clk 01:32:25]} {[%emt 00:00:08]} 10. Nd5 {[%clk 01:31:26]}
{[%emt 00:00:39]} Be7 {[%clk 01:32:45]} {[%emt 00:00:10]} 11. Bxf6 {[%clk
01:31:43]} {[%emt 00:00:13]} Bxf6 {[%clk 01:33:07]} {[%emt 00:00:07]} 12. c4
{[%clk 01:30:43]} {[%emt 00:01:31]} b4 {[%clk 01:33:20]} {[%emt 00:00:18]} 13.
Nc2 {[%clk 01:31:03]} {[%emt 00:00:10]} a5 {[%clk 01:33:40]} {[%emt 00:00:10]}
14. g3 {[%clk 01:29:37]} {[%emt 00:01:55]} g6 {[%clk 01:32:34]} {[%emt
00:01:36]} 15. h4 {[%clk 01:24:04]} {[%emt 00:06:03]} h5 {[%clk 01:30:58]}
{[%emt 00:02:06]} 16. Bh3 {[%clk 01:24:16]} {[%emt 00:00:19]} Bb7 {[%clk
01:31:18]} {[%emt 00:00:10]} 17. Qd3 {[%clk 01:21:57]} {[%emt 00:02:49]} Bg7
{[%clk 01:28:56]} {[%emt 00:02:51]} 18. Rd1 {[%clk 01:18:03]} {[%emt 00:04:25]}
O-O {[%clk 01:16:57]} {[%emt 00:12:28]} 19. O-O {[%clk 01:17:50]} {[%emt
00:00:44]} Nb8 {[%clk 01:09:32]} {[%emt 00:07:54]} 20. Nce3 {[%clk 01:15:03]}
{[%emt 00:03:17]} Na6 {[%clk 01:07:17]} {[%emt 00:02:45]} 21. Ng2 {[%clk
01:06:17]} {[%emt 00:09:15]} Nc5 {[%clk 01:04:52]} {[%emt 00:02:55]} 22. Qb1
{[%clk 01:06:25]} {[%emt 00:00:23]} b3 {[%clk 00:45:48]} {[%emt 00:19:34]} 23.
a3 {[%clk 01:06:30]} {[%emt 00:00:24]} Bh6 {[%clk 00:31:41]} {[%emt 00:14:38]}
24. Rfe1 {[%clk 01:02:19]} {[%emt 00:04:42]} Ra7 {[%clk 00:26:54]} {[%emt
00:05:17]} 25. Nge3 {[%clk 01:01:00]} {[%emt 00:01:49]} Ba6 {[%clk 00:24:24]}
{[%emt 00:02:59]} 26. Rd2 {[%clk 00:58:47]} {[%emt 00:02:44]} Kh8 {[%clk
00:15:50]} {[%emt 00:09:04]} 27. Ree2 {[%clk 00:53:20]} {[%emt 00:05:56]} Rb7
{[%clk 00:15:24]} {[%emt 00:00:56]} 28. Bg2 {[%clk 00:49:30]} {[%emt 00:04:20]}
Qc8 {[%clk 00:14:06]} {[%emt 00:01:49]} 29. Nc3 {[%clk 00:47:03]} {[%emt
00:02:57]} Rd8 {[%clk 00:11:27]} {[%emt 00:03:09]} 30. Qd1 {[%clk 00:45:11]}
{[%emt 00:02:21]} Qe6 {[%clk 00:08:58]} {[%emt 00:03:00]} 31. Rd5 {[%clk
00:44:47]} {[%emt 00:00:53]} Qe7 {[%clk 00:08:00]} {[%emt 00:01:28]} 32. Red2
{[%clk 00:43:47]} {[%emt 00:01:30]} Bxe3 {[%clk 00:04:32]} {[%emt 00:03:57]} 33.
fxe3 {[%clk 00:44:02]} {[%emt 00:00:15]} Rbd7 {[%clk 00:04:38]} {[%emt
00:00:25]} 34. Bh3 {[%clk 00:44:14]} {[%emt 00:00:18]} Rc7 {[%clk 00:04:22]}
{[%emt 00:00:46]} 35. Rxd6 {[%clk 00:38:29]} {[%emt 00:06:16]} Rxd6 {[%clk
00:04:50]} {[%emt 00:00:02]} 36. Rxd6 {[%clk 00:38:51]} {[%emt 00:00:06]} Bxc4
{[%clk 00:05:15]} {[%emt 00:00:06]} 37. Rd8+ {[%clk 00:26:51]} {[%emt
00:12:30]} Kg7 {[%clk 00:05:18]} {[%emt 00:00:28]} 38. Rd6 {[%clk 00:27:14]}
{[%emt 00:00:06]} Nb7 {[%clk 00:04:53]} {[%emt 00:00:56]} 39. Rd2 {[%clk
00:26:51]} {[%emt 00:00:53]} Qc5 {[%clk 00:04:56]} {[%emt 00:00:26]} 40. Qe1
{[%clk 00:25:54]} {[%emt 00:01:27]} Nd6 {[%clk 00:02:54]} {[%emt 00:02:32]} 41.
Kf2 {[%clk 00:22:35]} {[%emt 00:03:48]} Qc6 {[%clk 00:27:56]} {[%emt 00:05:28]}
42. Bg2 {[%clk 00:46:26]} {[%emt 00:06:40]} Be6 {[%clk 00:25:40]} {[%emt
00:02:46]} 43. Nd5 {[%clk 00:44:29]} {[%emt 00:02:28]} Bxd5 {[%clk 00:22:13]}
{[%emt 00:03:57]} 44. exd5 {[%clk 00:43:58]} {[%emt 00:01:01]} Qc1 {[%clk
00:21:08]} {[%emt 00:01:34]} 45. Qxc1 {[%clk 00:42:44]} {[%emt 00:01:45]} Rxc1
{[%clk 00:21:32]} 46. Ke2 {[%clk 00:43:11]} {[%emt 00:00:09]} e4 {[%clk
00:16:06]} {[%emt 00:05:55]} 47. Bf1 {[%clk 00:42:28]} {[%emt 00:01:13]} Kf6
{[%clk 00:14:45]} {[%emt 00:01:50]} 48. Kf2 {[%clk 00:42:35]} {[%emt 00:00:24]}
Ke5 {[%clk 00:12:17]} {[%emt 00:02:59]} 49. a4 {[%clk 00:42:25]} {[%emt
00:00:40]} Nf5 {[%clk 00:11:19]} {[%emt 00:01:27]} 50. Be2 {[%clk 00:39:56]}
{[%emt 00:02:59]} Rc2 {[%clk 00:09:04]} {[%emt 00:02:45]} 51. Ke1 {[%clk
00:40:21]} {[%emt 00:00:06]} Nxg3 {[%clk 00:07:47]} {[%emt 00:01:47]} 52. d6
{[%clk 00:40:46]} {[%emt 00:00:05]} Rxd2 {[%clk 00:08:03]} {[%emt 00:00:13]} 53.
Kxd2 {[%clk 00:41:12]} {[%emt 00:00:04]} Kxd6 {[%clk 00:08:28]} {[%emt
00:00:06]} 54. Bc4 {[%clk 00:41:39]} {[%emt 00:00:02]} f6 {[%clk 00:08:10]}
{[%emt 00:00:46]} 55. Bxb3 {[%clk 00:40:21]} {[%emt 00:01:51]} g5 {[%clk
00:07:42]} {[%emt 00:00:57]} 56. Ke1 {[%clk 00:40:49]} {[%emt 00:00:02]} gxh4
{[%clk 00:07:04]} {[%emt 00:01:07]} 57. Kf2 {[%clk 00:41:18]} {[%emt 00:00:02]}
Kc5 {[%clk 00:04:44]} {[%emt 00:02:50]} 58. Be6 {[%clk 00:40:46]} {[%emt
00:01:03]} Kb4 {[%clk 00:05:01]} {[%emt 00:00:12]} 59. b3 {[%clk 00:41:13]}
{[%emt 00:00:04]} Kc3 {[%clk 00:05:18]} {[%emt 00:00:12]} 60. Ke1 {[%clk
00:41:27]} {[%emt 00:00:16]} h3 {[%clk 00:05:08]} {[%emt 00:00:39]} 61. Bxh3
{[%clk 00:41:22]} {[%emt 00:00:36]} Kxb3 {[%clk 00:05:31]} {[%emt 00:00:07]} 62.
Bd7 {[%clk 00:41:30]} {[%emt 00:00:22]} Kc3 {[%clk 00:05:35]} {[%emt 00:00:25]}
63. Kf2 {[%clk 00:41:37]} {[%emt 00:00:23]} h4 {[%clk 00:05:38]} {[%emt
00:00:27]} 64. Bg4 {[%clk 00:40:58]} {[%emt 00:01:10]} Kd2 {[%clk 00:05:47]}
{[%emt 00:00:21]} 65. Bd7 {[%clk 00:40:56]} {[%emt 00:00:33]} Nh1 {[%clk
00:04:58]} {[%emt 00:01:19]} 66. Kg2 {[%clk 00:41:21]} {[%emt 00:00:05]} Kxe3
{[%clk 00:05:21]} {[%emt 00:00:07]} 67. Kxh1 {[%clk 00:41:47]} {[%emt
00:00:04]} Kf2 {[%clk 00:05:46]} 0-1

[Event "NK 2022"]
[Site "Groningen, Netherlands"]
[Date "2022.12.22"]
[Round "2.8"]
[White "Ten Hertog, Hugo"]
[Black "Kevlishvili, Robby"]
[Result "0-1"]
[TimeControl "40/90; 30 minutes + increment 30 seconds from start"]
[WhiteTitle "GM"]
[BlackTitle "GM"]
[WhiteFideId "1026356"]
[BlackFideId "1040634"]
[WhiteElo "2531"]
[BlackElo "2530"]

1. e4 {[%clk 01:30:56]} {[%emt 00:00:03]} c5 {[%clk 01:30:54]} {[%emt
00:00:06]} 2. Nf3 {[%clk 01:31:23]} {[%emt 00:00:04]} d6 {[%clk 01:31:14]}
{[%emt 00:00:10]} 3. d4 {[%clk 01:31:49]} {[%emt 00:00:04]} cxd4 {[%clk
01:31:36]} {[%emt 00:00:08]} 4. Nxd4 {[%clk 01:32:16]} {[%emt 00:00:03]} Nf6
{[%clk 01:31:55]} {[%emt 00:00:11]} 5. Nc3 {[%clk 01:32:42]} {[%emt 00:00:04]}
a6 {[%clk 01:32:05]} {[%emt 00:00:20]} 6. h3 {[%clk 01:33:08]} {[%emt
00:00:04]} e5 {[%clk 01:32:09]} {[%emt 00:00:27]} 7. Nb3 {[%clk 01:33:31]}
{[%emt 00:00:07]} Be7 {[%clk 01:32:25]} {[%emt 00:00:13]} 8. g4 {[%clk
01:32:58]} {[%emt 00:01:03]} h6 {[%clk 01:32:41]} {[%emt 00:00:14]} 9. Be3
{[%clk 01:33:24]} {[%emt 00:00:04]} Nbd7 {[%clk 01:29:57]} {[%emt 00:03:15]} 10.
Qf3 {[%clk 01:04:26]} {[%emt 00:29:27]} b5 {[%clk 01:26:19]} {[%emt 00:04:08]}
11. h4 {[%clk 00:42:37]} {[%emt 00:22:19]} b4 {[%clk 01:23:55]} {[%emt
00:02:54]} 12. Ne2 {[%clk 00:40:27]} {[%emt 00:02:40]} d5 {[%clk 01:19:43]}
{[%emt 00:04:42]} 13. O-O-O {[%clk 00:32:47]} {[%emt 00:08:10]} dxe4 {[%clk
01:14:56]} {[%emt 00:05:17]} 14. Qg2 {[%clk 00:32:32]} {[%emt 00:00:45]} Bb7
{[%clk 01:03:54]} {[%emt 00:11:33]} 15. g5 {[%clk 00:29:58]} {[%emt 00:03:04]}
Nd5 {[%clk 01:04:09]} {[%emt 00:00:15]} 16. Ng3 {[%clk 00:13:26]} {[%emt
00:17:02]} Qc7 {[%clk 00:55:44]} {[%emt 00:08:56]} 17. g6 {[%clk 00:13:50]}
{[%emt 00:00:05]} Rc8 {[%clk 00:31:23]} {[%emt 00:24:51]} 18. gxf7+ {[%clk
00:14:09]} {[%emt 00:00:11]} Kxf7 {[%clk 00:31:47]} {[%emt 00:00:07]} 19. Rd2
{[%clk 00:14:32]} {[%emt 00:00:06]} Nf4 {[%clk 00:32:04]} {[%emt 00:00:13]} 20.
Qh2 {[%clk 00:10:22]} {[%emt 00:04:40]} Nf6 {[%clk 00:31:37]} {[%emt 00:00:57]}
21. Bh3 {[%clk 00:08:57]} {[%emt 00:01:55]} Nxh3 {[%clk 00:31:22]} {[%emt
00:00:45]} 22. Qxh3 {[%clk 00:09:23]} {[%emt 00:00:04]} Rhd8 {[%clk 00:31:47]}
{[%emt 00:00:05]} 23. Rhd1 {[%clk 00:09:48]} {[%emt 00:00:04]} Rxd2 {[%clk
00:31:38]} {[%emt 00:00:39]} 24. Rxd2 {[%clk 00:10:16]} {[%emt 00:00:03]} Bd5
{[%clk 00:28:43]} {[%emt 00:03:25]} 25. h5 {[%clk 00:08:49]} {[%emt 00:01:56]}
Be6 {[%clk 00:28:53]} {[%emt 00:00:21]} 26. Qg2 {[%clk 00:07:58]} {[%emt
00:01:21]} Qc4 {[%clk 00:28:52]} {[%emt 00:00:30]} 27. Kb1 {[%clk 00:07:10]}
{[%emt 00:01:18]} Bg4 {[%clk 00:27:39]} {[%emt 00:01:43]} 28. Qh1 {[%clk
00:05:37]} {[%emt 00:02:02]} Bf3 {[%clk 00:27:46]} {[%emt 00:00:24]} 29. Qh2
{[%clk 00:03:17]} {[%emt 00:02:51]} Qe6 {[%clk 00:24:59]} {[%emt 00:03:17]} 30.
Na5 {[%clk 00:02:48]} {[%emt 00:00:58]} Ng4 {[%clk 00:23:26]} {[%emt 00:02:03]}
31. Qg1 {[%clk 00:02:47]} {[%emt 00:00:31]} Nxe3 {[%clk 00:22:45]} {[%emt
00:01:11]} 32. fxe3 {[%clk 00:03:14]} {[%emt 00:00:04]} Rd8 {[%clk 00:22:55]}
{[%emt 00:00:20]} 33. Qf2 {[%clk 00:01:19]} {[%emt 00:02:25]} Rxd2 {[%clk
00:19:32]} {[%emt 00:03:53]} 34. Qxd2 {[%clk 00:01:45]} {[%emt 00:00:04]} Kg8
{[%clk 00:19:56]} {[%emt 00:00:06]} 35. b3 {[%clk 00:01:07]} {[%emt 00:01:08]}
Kh7 {[%clk 00:18:49]} {[%emt 00:01:37]} 36. Nc4 {[%clk 00:00:59]} {[%emt
00:00:38]} Qg4 {[%clk 00:18:55]} {[%emt 00:00:23]} 37. Qh2 {[%clk 00:00:47]}
{[%emt 00:00:42]} Bh4 {[%clk 00:17:09]} {[%emt 00:02:17]} 38. Nf5 {[%clk
00:01:02]} {[%emt 00:00:15]} Be1 {[%clk 00:15:26]} {[%emt 00:02:13]} 39. Ne7
{[%clk 00:00:32]} {[%emt 00:01:00]} Bc3 {[%clk 00:14:31]} {[%emt 00:01:25]} 40.
Nd5 {[%clk 00:00:37]} {[%emt 00:00:25]} Qxh5 {[%clk 00:10:49]} {[%emt
00:04:12]} 41. Qg1 {[%clk 00:00:43]} {[%emt 00:00:23]} Qg4 {[%clk 00:10:13]}
{[%emt 00:01:07]} 0-1

[Event "NK 2022"]
[Site "Groningen, Netherlands"]
[Date "2022.12.22"]
[Round "3.1"]
[White "Van Foreest, Lucas"]
[Black "Ernst, Sipke"]
[Result "1-0"]
[TimeControl "40/90; 30 minutes + increment 30 seconds from start"]
[WhiteTitle "GM"]
[BlackTitle "GM"]
[WhiteFideId "1039792"]
[BlackFideId "1004689"]
[WhiteElo "2577"]
[BlackElo "2512"]

1. d4 {[%clk 00:25:17]} {[%emt 00:00:02]} Nf6 {[%clk 00:25:06]} {[%emt
00:00:14]} 2. Nf3 {[%clk 00:25:24]} {[%emt 00:00:03]} a6 {[%clk 00:24:17]}
{[%emt 00:01:00]} 3. Bf4 {[%clk 00:24:08]} {[%emt 00:01:26]} e6 {[%clk
00:24:12]} {[%emt 00:00:14]} 4. Nbd2 {[%clk 00:24:05]} {[%emt 00:00:13]} b5
{[%clk 00:22:18]} {[%emt 00:02:04]} 5. e4 {[%clk 00:23:38]} {[%emt 00:00:37]}
Bb7 {[%clk 00:22:27]} {[%emt 00:00:02]} 6. Bd3 {[%clk 00:23:42]} {[%emt
00:00:05]} d6 {[%clk 00:20:15]} {[%emt 00:02:23]} 7. O-O {[%clk 00:23:32]}
{[%emt 00:00:20]} Nbd7 {[%clk 00:20:11]} {[%emt 00:00:14]} 8. a4 {[%clk
00:23:22]} {[%emt 00:00:20]} b4 {[%clk 00:19:35]} {[%emt 00:00:46]} 9. c3
{[%clk 00:23:25]} {[%emt 00:00:07]} bxc3 {[%clk 00:16:53]} {[%emt 00:02:52]} 10.
bxc3 {[%clk 00:23:33]} Be7 {[%clk 00:16:35]} {[%emt 00:00:28]} 11. Rb1 {[%clk
00:23:41]} {[%emt 00:00:03]} Ra7 {[%clk 00:15:48]} {[%emt 00:00:57]} 12. Qc2
{[%clk 00:23:47]} {[%emt 00:00:04]} h6 {[%clk 00:13:32]} {[%emt 00:02:26]} 13.
Nc4 {[%clk 00:21:24]} {[%emt 00:02:32]} O-O {[%clk 00:12:13]} {[%emt 00:01:29]}
14. Be3 {[%clk 00:20:25]} {[%emt 00:01:10]} d5 {[%clk 00:10:14]} {[%emt
00:02:09]} 15. exd5 {[%clk 00:19:40]} {[%emt 00:00:55]} Bxd5 {[%clk 00:09:31]}
{[%emt 00:00:53]} 16. Nfe5 {[%clk 00:18:56]} {[%emt 00:00:54]} Qa8 {[%clk
00:09:21]} {[%emt 00:00:20]} 17. f3 {[%clk 00:18:57]} {[%emt 00:00:09]} c5
{[%clk 00:09:06]} {[%emt 00:00:25]} 18. Qf2 {[%clk 00:18:47]} {[%emt 00:00:18]}
cxd4 {[%clk 00:04:29]} {[%emt 00:04:49]} 19. Bxd4 {[%clk 00:18:55]} {[%emt
00:00:02]} Nxe5 {[%clk 00:04:35]} {[%emt 00:00:03]} 20. Nxe5 {[%clk 00:18:50]}
{[%emt 00:00:16]} Rc7 {[%clk 00:04:32]} {[%emt 00:00:13]} 21. Rb6 {[%clk
00:18:47]} {[%emt 00:00:12]} a5 {[%clk 00:03:48]} {[%emt 00:00:55]} 22. Rfb1
{[%clk 00:18:29]} {[%emt 00:00:27]} Nd7 {[%clk 00:02:39]} {[%emt 00:01:20]} 23.
Nxd7 {[%clk 00:18:15]} {[%emt 00:00:24]} Rxd7 {[%clk 00:02:48]} {[%emt
00:00:01]} 24. Qg3 {[%clk 00:18:21]} {[%emt 00:00:04]} f6 {[%clk 00:01:34]}
{[%emt 00:01:24]} 25. Qg6 {[%clk 00:18:13]} {[%emt 00:00:18]} Rfd8 {[%clk
00:01:13]} {[%emt 00:00:31]} 26. Rb8 {[%clk 00:14:53]} {[%emt 00:03:29]} Qc6
{[%clk 00:01:01]} {[%emt 00:00:22]} 27. Qh7+ {[%clk 00:12:56]} {[%emt
00:02:08]} Kf8 {[%clk 00:01:10]} 28. Bb5 {[%clk 00:11:44]} {[%emt 00:01:22]}
Rxb8 {[%clk 00:01:20]} 29. Qh8+ {[%clk 00:11:24]} {[%emt 00:00:30]} Kf7 {[%clk
00:01:28]} 30. Qxb8 {[%clk 00:11:32]} Qc7 {[%clk 00:00:57]} {[%emt 00:00:41]}
31. Bxd7 {[%clk 00:11:41]} {[%emt 00:00:02]} Qxd7 {[%clk 00:01:06]} 32. Qb5
{[%clk 00:11:50]} Bc6 {[%clk 00:01:14]} {[%emt 00:00:02]} 33. Qxa5 {[%clk
00:11:58]} e5 {[%clk 00:01:23]} {[%emt 00:00:02]} 34. Bf2 {[%clk 00:11:59]}
{[%emt 00:00:08]} e4 {[%clk 00:01:32]} 35. Qh5+ {[%clk 00:11:31]} {[%emt
00:00:38]} Kg8 {[%clk 00:00:43]} {[%emt 00:01:00]} 36. fxe4 {[%clk 00:10:51]}
{[%emt 00:00:50]} Bxe4 {[%clk 00:00:50]} {[%emt 00:00:03]} 37. Re1 {[%clk
00:10:39]} {[%emt 00:00:23]} Qxa4 {[%clk 00:00:45]} {[%emt 00:00:15]} 38. Qh4
{[%clk 00:10:46]} {[%emt 00:00:02]} 1-0

[Event "NK 2022"]
[Site "Groningen, Netherlands"]
[Date "2022.12.22"]
[Round "4.1"]
[White "Ernst, Sipke"]
[Black "Van Foreest, Lucas"]
[Result "1/2-1/2"]
[TimeControl "40/90; 30 minutes + increment 30 seconds from start"]
[WhiteTitle "GM"]
[BlackTitle "GM"]
[WhiteFideId "1004689"]
[BlackFideId "1039792"]
[WhiteElo "2512"]
[BlackElo "2577"]

1. d4 {[%clk 00:25:16]} {[%emt 00:00:03]} Nf6 {[%clk 00:25:18]} {[%emt
00:00:02]} 2. c4 {[%clk 00:25:25]} {[%emt 00:00:02]} e6 {[%clk 00:25:27]}
{[%emt 00:00:02]} 3. Nc3 {[%clk 00:25:25]} {[%emt 00:00:09]} Bb4 {[%clk
00:25:35]} {[%emt 00:00:02]} 4. e3 {[%clk 00:25:28]} {[%emt 00:00:07]} O-O
{[%clk 00:25:43]} {[%emt 00:00:02]} 5. Bd2 {[%clk 00:24:31]} {[%emt 00:01:08]}
c5 {[%clk 00:25:51]} {[%emt 00:00:01]} 6. a3 {[%clk 00:24:25]} {[%emt
00:00:17]} Bxc3 {[%clk 00:25:58]} {[%emt 00:00:03]} 7. Bxc3 {[%clk 00:24:34]}
Ne4 {[%clk 00:26:06]} {[%emt 00:00:02]} 8. Rc1 {[%clk 00:24:30]} {[%emt
00:00:15]} b6 {[%clk 00:26:14]} 9. Nf3 {[%clk 00:24:23]} {[%emt 00:00:17]} Ba6
{[%clk 00:26:11]} {[%emt 00:00:13]} 10. Be2 {[%clk 00:24:08]} {[%emt 00:00:25]}
Nxc3 {[%clk 00:25:57]} {[%emt 00:00:25]} 11. Rxc3 {[%clk 00:24:17]} {[%emt
00:00:01]} cxd4 {[%clk 00:26:04]} {[%emt 00:00:03]} 12. Nxd4 {[%clk 00:24:15]}
{[%emt 00:00:11]} Nc6 {[%clk 00:26:12]} {[%emt 00:00:02]} 13. Nxc6 {[%clk
00:22:39]} {[%emt 00:01:46]} dxc6 {[%clk 00:26:21]} {[%emt 00:00:02]} 14. Qxd8
{[%clk 00:22:36]} {[%emt 00:00:13]} Rfxd8 {[%clk 00:25:36]} {[%emt 00:00:55]}
15. c5 {[%clk 00:22:45]} Bxe2 {[%clk 00:25:37]} {[%emt 00:00:09]} 16. Kxe2
{[%clk 00:22:53]} {[%emt 00:00:01]} b5 {[%clk 00:25:27]} {[%emt 00:00:20]} 17.
f3 {[%clk 00:18:25]} {[%emt 00:04:38]} a5 {[%clk 00:25:13]} {[%emt 00:00:25]}
18. g4 {[%clk 00:17:56]} {[%emt 00:00:39]} Kf8 {[%clk 00:25:13]} {[%emt
00:00:10]} 19. h4 {[%clk 00:17:54]} {[%emt 00:00:11]} Rd5 {[%clk 00:25:17]}
{[%emt 00:00:06]} 20. e4 {[%clk 00:18:02]} {[%emt 00:00:03]} Rd4 {[%clk
00:25:17]} {[%emt 00:00:09]} 21. Rd1 {[%clk 00:14:27]} {[%emt 00:03:45]} Rad8
{[%clk 00:25:12]} {[%emt 00:00:15]} 22. Rxd4 {[%clk 00:13:45]} {[%emt
00:00:53]} Rxd4 {[%clk 00:25:20]} {[%emt 00:00:02]} 23. Rc1 {[%clk 00:13:34]}
{[%emt 00:00:20]} Ke7 {[%clk 00:25:15]} {[%emt 00:00:15]} 24. Ke3 {[%clk
00:13:33]} {[%emt 00:00:12]} Rd8 {[%clk 00:23:28]} {[%emt 00:01:57]} 25. f4
{[%clk 00:13:26]} {[%emt 00:00:17]} h5 {[%clk 00:22:18]} {[%emt 00:01:19]} 26.
g5 {[%clk 00:12:09]} {[%emt 00:01:28]} Rd7 {[%clk 00:19:36]} {[%emt 00:02:51]}
27. Ra1 {[%clk 00:11:09]} {[%emt 00:01:10]} Rd8 {[%clk 00:19:23]} {[%emt
00:00:23]} 28. Rf1 {[%clk 00:09:11]} {[%emt 00:02:09]} Ke8 {[%clk 00:19:23]}
{[%emt 00:00:10]} 29. Ra1 {[%clk 00:09:19]} {[%emt 00:00:02]} Ke7 {[%clk
00:19:31]} {[%emt 00:00:01]} 30. Rf1 {[%clk 00:09:28]} {[%emt 00:00:02]} Ke8
{[%clk 00:19:40]} {[%emt 00:00:01]} 1/2-1/2